[Event "Israeli Team U18-ch 2022"]
[Site "Be'er Ya'akov"]
[Date "2022.08.15"]
[Round "5.13"]
[White "Rivlin, Shachar"]
[Black "Kochavi, Dana"]
[Result "1/2-1/2"]
[ECO "E18"]
[WhiteElo "1924"]
[BlackElo "1885"]
[Annotator "NA RC"]
[PlyCount "162"]
[EventDate "2022.08.14"]
[EventCountry "ISR"]
[SourceTitle "playchess.com"]
[Source "ChessBase"]
[SourceQuality "1"]
[TimeControl "3000+10"]

1. d4 {[%emt 0:00:13]} Nf6 {[%emt 0:00:47]} 2. c4 {[%emt 0:00:07]} e6 {[%emt 0:00:03]} 3. Nf3 {[%emt 0:00:17]} b6 {[%emt 0:00:04]} 4. g3 {[%emt 0:00:06]} Bb7 {[%emt 0:00:04]} 5. Bg2 {[%emt 0:00:06]} Be7 {[%emt 0:01:03]} 6. O-O {[%emt 0:00:11]} d5 {[%emt 0:00:27]} 7. Nc3 {[%emt 0:02:59]} O-O {[%emt 0:01:30]} 8. Ne5 {[%emt 0:04:05]} Nbd7 {[%emt 0:04:45]} 9. Qa4 {[%emt 0:01:06]} c6 {[%emt 0:04:23]} 10. cxd5 {[%emt 0:07:23]} cxd5 {[%emt 0:00:51]} 11. Rd1 {[%emt 0:07:35]} a6 {[%emt 0:03:59]} 12. Bf4 {[%emt 0:01:32]} b5 {[%emt 0:04:26]} 13. Qb3 {[%emt 0:01:12]} Qb6 {[%emt 0:02:29]} 14. a4 {[%emt 0:03:15]} b4 {[%emt 0:01:05]} 15. a5 {[%emt 0:02:15]} Qa7 {[%emt 0:01:39]} 16. Na2 {[%emt 0:05:59]} Nxe5 {[%emt 0:08:14]} 17. Bxe5 {[%emt 0:00:26]} Nd7 {[%emt 0:05:33]} 18. Bf4 {[%emt 0:01:26]} Bc6 {[%emt 0:00:44]} 19. Nxb4 {[%emt 0:04:07]} Qb7 {[%emt 0:00:25]} 20. Bd2 {[%emt 0:02:07]} Rfb8 {[%emt 0:00:49]} 21. Rac1 {[%emt 0:04:14]} Bxb4 {[%emt 0:02:22]} 22. Qxb4 {[%emt 0:00:40]} Qxb4 {[%emt 0:00:09]} 23. Bxb4 {[%emt 0:00:06]} Ba4 {[%emt 0:00:02]} 24. Bd6 {[%emt 0:00:44]} Rxb2 {[%emt 0:00:12]} 25. Rb1 {[%emt 0:01:41]} Rxe2 {[%emt 0:03:31]} 26. Rdc1 {[%emt 0:00:01]} Rc2 {[%emt 0:00:01]} 27. Rxc2 {[%emt 0:00:11]} Bxc2 {[%emt 0:00:04]} 28. Rb7 {[%emt 0:00:15]} Ba4 {[%emt 0:00:01]} 29. Bf1 {[%emt 0:00:10]} h6 {[%emt 0:00:12]} 30. Rb4 {[%emt 0:00:20]} Bc6 {[%emt 0:00:12]} 31. Rb1 {[%emt 0:00:16]} Kh7 {[%emt 0:02:01]} 32. Rc1 {[%emt 0:00:11]} Bb7 {[%emt 0:00:01]} 33. Rc7 {[%emt 0:00:02]} Bc8 {[%emt 0:00:01]} 34. Bd3+ {[%emt 0:00:17]} g6 {[%emt 0:01:17]} 35. g4 {[%emt 0:00:09]} Kg7 {[%emt 0:00:11]} 36. h4 {[%emt 0:00:05]} g5 {[%emt 0:00:33]} 37. hxg5 {[%emt 0:00:07]} hxg5 {[%emt 0:00:01]} 38. Be7 {[%emt 0:00:19]} Nf6 {[%emt 0:00:01]} 39. f3 {[%emt 0:00:09]} Rb8 {[%emt 0:00:20]} 40. Rc6 {[%emt 0:00:08]} Rb3 {[%emt 0:00:42]} 41. Bc2 {[%emt 0:00:06]} Bb7 {[%emt 0:00:07]} 42. Rc7 {[%emt 0:00:08]} Rb5 {[%emt 0:00:29]} 43. Bd6 {[%emt 0:00:11]} Ne8 {[%emt 0:00:18]} 44. Be5+ {[%emt 0:00:01]} Kf8 {[%emt 0:00:01]} 45. Rc5 {[%emt 0:00:27]} Rb4 {[%emt 0:00:20]} 46. Bd3 {[%emt 0:00:12]} Ke7 {[%emt 0:00:08]} 47. Kf2 {[%emt 0:00:07]} f6 {[%emt 0:00:01]} 48. Bg3 {[%emt 0:00:05]} Kd7 {[%emt 0:00:15]} 49. Ke3 {[%emt 0:00:12]} Rb3 {[%emt 0:00:26]} 50. Ke2 {[%emt 0:00:10]} Rb2+ {[%emt 0:00:07]} 51. Ke3 {[%emt 0:00:06]} Nd6 {[%emt 0:00:03]} 52. Rc1 {[%emt 0:00:19]} Rb3 {[%emt 0:00:11]} 53. Ke2 {[%emt 0:00:06]} Ra3 {[%emt 0:00:13]} 54. Rb1 {[%emt 0:00:05]} Bc6 {[%emt 0:00:08]} 55. Bxa6 {[%emt 0:00:17]} Rxa5 {[%emt 0:00:02]} 56. Bd3 {[%emt 0:00:05]} Ra2+ {[%emt 0:00:20]} 57. Ke3 {[%emt 0:00:03]} Ra3 {[%emt 0:00:01]} 58. Ke2 {[%emt 0:00:03]} Ra5 {[%emt 0:00:09]} 59. Rh1 {[%emt 0:00:04]} Bb5 {[%emt 0:00:17]} 60. Rh7+ {[%emt 0:00:03]} Kc6 {[%emt 0:00:01]} 61. Rh6 {[%emt 0:00:41]} Bxd3+ 62. Kxd3 {[%emt 0:00:01]} Ra3+ {[%emt 0:00:09]} 63. Ke2 {[%emt 0:00:03]} Nb5 {[%emt 0:00:59]} 64. Bf2 {[%emt 0:00:18]} Ra2+ {[%emt 0:00:04]} 65. Kf1 {[%emt 0:00:09]} Kd6 {[%emt 0:00:26]} 66. Rxf6 {[%emt 0:00:04]} Ra4 {[%emt 0:00:10]} 67. Rg6 {[%emt 0:00:20]} Nxd4 {[%emt 0:00:01]} 68. Bxd4 {[%emt 0:00:04]} Rxd4 {[%emt 0:00:02]} 69. Rxg5 {[%emt 0:00:01]} Rf4 {[%emt 0:00:11]} 70. Ke2 {[%emt 0:00:04]} d4 {[%emt 0:00:18]} 71. Rg8 {[%emt 0:00:03]} Kd5 {[%emt 0:00:09]} 72. Rd8+ {[%emt 0:00:18]} Ke5 {[%emt 0:00:00]} 73. Rd7 {[%emt 0:00:31]} Kf6 {[%emt 0:00:16]} 74. Rd8 {[%emt 0:00:03]} Ke5 {[%emt 0:00:06]} 75. Ra8 {[%emt 0:00:17]} d3+ {[%emt 0:00:21]} 76. Ke3 {[%emt 0:00:05]} d2 {[%emt 0:00:15]} 77. Ra5+ {[%emt 0:00:13]} Kf6 {[%emt 0:00:05]} 78. Kxd2 {[%emt 0:00:33]} Rxf3 {[%emt 0:00:01]} 79. g5+ {[%emt 0:00:00]} Kg6 {[%emt 0:00:01]} 80. Ke2 {[%emt 0:00:00]} Rh3 {[%emt 0:00:37]} 81. Re5 {[%emt 0:00:09]} Rh5 {[%emt 0:00:04]} 1/2-1/2

[Event "Israeli Team U18-ch 2022"]
[Site "Be'er Ya'akov"]
[Date "2022.08.15"]
[Round "5.14"]
[White "Bialik, Eyal"]
[Black "Cohen, Asaf"]
[Result "1-0"]
[ECO "C01"]
[WhiteElo "1804"]
[BlackElo "1455"]
[Annotator "NA RC"]
[PlyCount "119"]
[EventDate "2022.08.14"]
[EventCountry "ISR"]
[SourceTitle "playchess.com"]
[Source "ChessBase"]
[SourceQuality "1"]
[TimeControl "3000+10"]

1. e4 {[%emt 0:00:02]} e6 {[%emt 0:00:04]} 2. d4 {[%emt 0:00:06]} d5 {[%emt 0:00:02]} 3. exd5 {[%emt 0:00:08]} exd5 {[%emt 0:00:13]} 4. Bd3 {[%emt 0:00:12]} Bd6 {[%emt 0:00:27]} 5. Be3 {[%emt 0:00:14]} Ne7 {[%emt 0:00:18]} 6. c3 {[%emt 0:00:13]} Nbc6 {[%emt 0:01:06]} 7. Qc2 {[%emt 0:00:13]} Be6 {[%emt 0:02:46]} 8. Nf3 {[%emt 0:00:26]} h6 {[%emt 0:00:47]} 9. Nbd2 {[%emt 0:00:27]} f5 {[%emt 0:07:40]} 10. Nb3 {[%emt 0:00:45]} b6 {[%emt 0:10:36]} 11. O-O-O {[%emt 0:05:57]} a5 {[%emt 0:03:44]} 12. Kb1 {[%emt 0:01:33]} Rf8 {[%emt 0:04:07]} 13. Rde1 {[%emt 0:01:25]} a4 {[%emt 0:04:27]} 14. Nc1 {[%emt 0:00:49]} a3 {[%emt 0:00:39]} 15. b3 {[%emt 0:00:31]} Bg8 {[%emt 0:00:56]} 16. h4 {[%emt 0:00:35]} Kd7 {[%emt 0:00:37]} 17. Ne2 {[%emt 0:00:56]} Kc8 {[%emt 0:01:17]} 18. Bf4 {[%emt 0:00:55]} Kb7 {[%emt 0:01:01]} 19. h5 {[%emt 0:00:48]} Bh7 {[%emt 0:01:38]} 20. g3 {[%emt 0:01:55]} Ng8 {[%emt 0:01:19]} 21. Bxd6 {[%emt 0:01:15]} Qxd6 {[%emt 0:00:09]} 22. Nf4 {[%emt 0:00:05]} Rae8 {[%emt 0:03:44]} 23. Bb5 {[%emt 0:01:06]} Nf6 {[%emt 0:00:51]} 24. Bxc6+ {[%emt 0:01:00]} Qxc6 {[%emt 0:00:37]} 25. Ne5 {[%emt 0:00:02]} Qd6 {[%emt 0:00:33]} 26. f3 {[%emt 0:03:10]} Rg8 {[%emt 0:01:08]} 27. Ka1 {[%emt 0:03:34]} Re7 {[%emt 0:02:34]} 28. Re2 {[%emt 0:03:52]} Rge8 {[%emt 0:00:28]} 29. Rhe1 {[%emt 0:00:35]} Nd7 {[%emt 0:00:36]} 30. Nxd7 {[%emt 0:01:21]} Qxd7 {[%emt 0:00:06]} 31. Re5 {[%emt 0:02:16]} c5 {[%emt 0:00:07]} 32. Qe2 {[%emt 0:01:15]} Rxe5 33. dxe5 {[%emt 0:00:01]} Re7 {[%emt 0:00:35]} 34. e6 {[%emt 0:03:26]} Qd6 {[%emt 0:00:01]} 35. Qe5 {[%emt 0:00:01]} Qxe5 {[%emt 0:00:01]} 36. Rxe5 {[%emt 0:00:09]} Bg8 {[%emt 0:00:30]} 37. Rxf5 {[%emt 0:00:01]} d4 {[%emt 0:00:20]} 38. cxd4 {[%emt 0:02:39]} cxd4 {[%emt 0:00:01]} 39. Rd5 {[%emt 0:01:29]} Kc6 {[%emt 0:00:22]} 40. Rxd4 {[%emt 0:00:25]} Bxe6 {[%emt 0:00:04]} 41. Re4 {[%emt 0:01:02]} Kd6 {[%emt 0:00:01]} 42. Rxe6+ {[%emt 0:00:32]} Rxe6 {[%emt 0:00:01]} 43. Nxe6 {[%emt 0:00:19]} Kxe6 {[%emt 0:00:01]} 44. Kb1 {[%emt 0:00:05]} Kf6 {[%emt 0:00:23]} 45. Kc2 {[%emt 0:00:08]} Kg5 {[%emt 0:00:01]} 46. Kd3 {[%emt 0:00:34]} Kxh5 {[%emt 0:00:01]} 47. b4 {[%emt 0:00:30]} Kg6 {[%emt 0:00:41]} 48. Ke4 {[%emt 0:00:07]} Kf6 {[%emt 0:00:06]} 49. Kd5 {[%emt 0:00:32]} Ke7 {[%emt 0:00:21]} 50. Kc6 {[%emt 0:00:19]} h5 {[%emt 0:00:08]} 51. f4 {[%emt 0:00:10]} Kf6 {[%emt 0:00:02]} 52. Kxb6 {[%emt 0:00:14]} Kf5 {[%emt 0:00:20]} 53. Kc6 {[%emt 0:00:27]} Kg4 {[%emt 0:00:01]} 54. b5 {[%emt 0:00:07]} Kxg3 {[%emt 0:00:01]} 55. b6 {[%emt 0:00:18]} Kxf4 {[%emt 0:00:01]} 56. b7 {[%emt 0:00:11]} h4 {[%emt 0:00:06]} 57. b8=Q+ {[%emt 0:00:07]} Kg4 {[%emt 0:00:02]} 58. Kd5 {[%emt 0:00:11]} g5 {[%emt 0:00:07]} 59. Ke4 {[%emt 0:00:10]} Kh3 {[%emt 0:00:09]} 60. Qb3+ {[%emt 0:00:23]} 1-0

[Event "Israeli Team U18-ch 2022"]
[Site "Be'er Ya'akov"]
[Date "2022.08.15"]
[Round "5.15"]
[White "Kfir, Nadav"]
[Black "Soybert, Ori"]
[Result "1/2-1/2"]
[ECO "B33"]
[WhiteElo "1541"]
[BlackElo "1753"]
[Annotator "NA RC"]
[PlyCount "135"]
[EventDate "2022.08.14"]
[EventCountry "ISR"]
[SourceTitle "playchess.com"]
[Source "ChessBase"]
[SourceQuality "1"]
[TimeControl "3000+10"]

1. e4 {[%emt 0:00:02]} c5 {[%emt 0:00:05]} 2. Nf3 {[%emt 0:00:07]} Nc6 {[%emt 0:00:01]} 3. d4 {[%emt 0:00:07]} cxd4 {[%emt 0:00:02]} 4. Nxd4 {[%emt 0:00:10]} Nf6 {[%emt 0:00:02]} 5. Nc3 {[%emt 0:00:14]} e5 {[%emt 0:00:03]} 6. Ndb5 {[%emt 0:00:08]} d6 {[%emt 0:00:01]} 7. Nd5 {[%emt 0:00:08]} Nxd5 {[%emt 0:00:07]} 8. exd5 {[%emt 0:00:07]} Ne7 {[%emt 0:00:03]} 9. c4 {[%emt 0:00:08]} Ng6 {[%emt 0:00:01]} 10. Bd3 {[%emt 0:01:31]} a6 {[%emt 0:01:04]} 11. Nc3 {[%emt 0:00:15]} f5 {[%emt 0:00:17]} 12. O-O {[%emt 0:03:04]} Be7 {[%emt 0:00:40]} 13. b4 {[%emt 0:05:36]} O-O {[%emt 0:01:12]} 14. Ba3 {[%emt 0:01:14]} b6 {[%emt 0:10:54]} 15. Na4 {[%emt 0:11:11]} Bd7 {[%emt 0:02:58]} 16. Rc1 {[%emt 0:07:15]} Nf4 {[%emt 0:01:03]} 17. Nb2 {[%emt 0:02:14]} e4 {[%emt 0:01:55]} 18. Be2 {[%emt 0:00:35]} Rc8 {[%emt 0:04:10]} 19. g3 {[%emt 0:04:09]} Nh3+ {[%emt 0:01:50]} 20. Kh1 {[%emt 0:00:52]} f4 {[%emt 0:01:09]} 21. Qd4 {[%emt 0:02:37]} f3 {[%emt 0:05:59]} 22. Bd1 {[%emt 0:02:16]} Bf5 {[%emt 0:04:00]} 23. c5 {[%emt 0:02:34]} Bf6 {[%emt 0:00:30]} 24. Qc4 {[%emt 0:00:12]} b5 {[%emt 0:00:01]} 25. Qb3 {[%emt 0:00:22]} Bg5 {[%emt 0:01:00]} 26. Rc3 {[%emt 0:01:27]} Bd2 {[%emt 0:00:45]} 27. Re3 {[%emt 0:00:50]} Bxe3 {[%emt 0:02:42]} 28. Qxe3 {[%emt 0:00:26]} Qg5 {[%emt 0:00:01]} 29. Qxg5 {[%emt 0:00:25]} Nxg5 {[%emt 0:00:02]} 30. h4 {[%emt 0:00:10]} Nf7 {[%emt 0:01:47]} 31. Bb3 {[%emt 0:00:54]} Ne5 {[%emt 0:01:10]} 32. Kg1 {[%emt 0:00:24]} e3 {[%emt 0:03:36]} 33. fxe3 {[%emt 0:00:04]} Bh3 {[%emt 0:00:37]} 34. Rf2 {[%emt 0:00:36]} Ng4 {[%emt 0:01:45]} 35. Nd3 {[%emt 0:00:03]} Nxf2 {[%emt 0:00:41]} 36. Kxf2 {[%emt 0:00:05]} Bf5 {[%emt 0:00:49]} 37. Nf4 {[%emt 0:00:23]} Kh8 {[%emt 0:01:25]} 38. c6 {[%emt 0:00:01]} h6 {[%emt 0:00:36]} 39. Bb2 {[%emt 0:00:27]} Kh7 {[%emt 0:00:21]} 40. Bd4 {[%emt 0:00:38]} g5 {[%emt 0:00:15]} 41. Nh5 {[%emt 0:00:37]} Kg6 {[%emt 0:00:22]} 42. Ng7 {[%emt 0:00:10]} Bg4 {[%emt 0:00:45]} 43. h5+ {[%emt 0:00:49]} Kf7 {[%emt 0:00:04]} 44. Bc2 {[%emt 0:00:02]} Rc7 {[%emt 0:00:28]} 45. Bg6+ {[%emt 0:00:05]} Ke7 {[%emt 0:00:05]} 46. e4 {[%emt 0:00:25]} Rcc8 {[%emt 0:00:14]} 47. Bf5 {[%emt 0:00:14]} Rxf5 {[%emt 0:00:08]} 48. Nxf5+ {[%emt 0:00:16]} Bxf5 {[%emt 0:00:02]} 49. exf5 {[%emt 0:00:00]} g4 {[%emt 0:00:09]} 50. Bg7 {[%emt 0:00:04]} a5 {[%emt 0:00:21]} 51. bxa5 {[%emt 0:00:21]} Ra8 {[%emt 0:00:03]} 52. Bxh6 {[%emt 0:00:02]} Rxa5 {[%emt 0:00:03]} 53. Bg5+ {[%emt 0:00:04]} Ke8 {[%emt 0:00:23]} 54. h6 {[%emt 0:00:24]} Rxa2+ {[%emt 0:00:01]} 55. Kf1 {[%emt 0:00:01]} Ra1+ {[%emt 0:00:15]} 56. Kf2 {[%emt 0:00:01]} Ra2+ {[%emt 0:00:01]} 57. Kf1 {[%emt 0:00:01]} Kf7 {[%emt 0:00:20]} 58. Bf4 {[%emt 0:01:08]} b4 {[%emt 0:00:15]} 59. Bxd6 {[%emt 0:00:03]} b3 {[%emt 0:00:01]} 60. Be5 {[%emt 0:00:03]} b2 {[%emt 0:00:11]} 61. Bxb2 {[%emt 0:01:29]} Rxb2 {[%emt 0:00:01]} 62. d6 {[%emt 0:00:00]} Rb1+ {[%emt 0:00:19]} 63. Kf2 {[%emt 0:00:00]} Rb2+ {[%emt 0:00:00]} 64. Kf1 {[%emt 0:00:00]} Rb1+ {[%emt 0:00:26]} 65. Kf2 {[%emt 0:00:00]} Rc1 {[%emt 0:00:04]} 66. c7 {[%emt 0:00:00]} Rc2+ {[%emt 0:00:10]} 67. Kf1 {[%emt 0:00:00]} Rc1+ {[%emt 0:00:17]} 68. Kf2 {[%emt 0:00:00]} 1/2-1/2

[Event "Israeli Team U18-ch 2022"]
[Site "Be'er Ya'akov"]
[Date "2022.08.15"]
[Round "5.16"]
[White "Bercovici, Yaniv"]
[Black "Levine, Arad"]
[Result "1-0"]
[ECO "A10"]
[WhiteElo "1548"]
[BlackElo "1267"]
[Annotator "NA RC"]
[PlyCount "59"]
[EventDate "2022.08.14"]
[EventCountry "ISR"]
[SourceTitle "playchess.com"]
[Source "ChessBase"]
[SourceQuality "1"]
[TimeControl "3000+10"]

1. c4 {[%emt 0:00:02]} f5 {[%emt 0:00:18]} 2. Nc3 {[%emt 0:00:39]} Nf6 {[%emt 0:00:10]} 3. g3 {[%emt 0:00:22]} e6 {[%emt 0:00:40]} 4. Bg2 {[%emt 0:00:18]} d5 {[%emt 0:00:44]} 5. e3 {[%emt 0:00:32]} c6 {[%emt 0:01:26]} 6. b3 {[%emt 0:00:09]} Bd6 {[%emt 0:01:54]} 7. Nge2 {[%emt 0:00:36]} O-O {[%emt 0:01:49]} 8. Bb2 {[%emt 0:00:12]} Nbd7 {[%emt 0:03:20]} 9. O-O {[%emt 0:00:23]} Rb8 {[%emt 0:03:59]} 10. d3 {[%emt 0:02:05]} b5 {[%emt 0:02:29]} 11. Nd4 {[%emt 0:01:13]} Qb6 {[%emt 0:05:09]} 12. Nxe6 {[%emt 0:00:45]} Re8 {[%emt 0:00:34]} 13. cxd5 {[%emt 0:00:30]} Rxe6 {[%emt 0:04:10]} 14. dxe6 {[%emt 0:00:25]} Nc5 {[%emt 0:01:44]} 15. Ne2 {[%emt 0:02:47]} Bxe6 {[%emt 0:01:38]} 16. Bd4 {[%emt 0:00:56]} b4 {[%emt 0:02:31]} 17. Rc1 {[%emt 0:01:02]} Nfd7 {[%emt 0:02:08]} 18. Qc2 {[%emt 0:02:47]} Bd5 {[%emt 0:05:25]} 19. e4 {[%emt 0:01:56]} Be6 {[%emt 0:03:22]} 20. e5 {[%emt 0:01:33]} Be7 {[%emt 0:00:08]} 21. Nf4 {[%emt 0:00:37]} Qd8 {[%emt 0:04:52]} 22. Bxc5 {[%emt 0:02:16]} Nxc5 {[%emt 0:00:11]} 23. Nxe6 {[%emt 0:00:25]} Nxe6 {[%emt 0:00:10]} 24. Qc4 {[%emt 0:00:06]} Qc8 {[%emt 0:01:12]} 25. Bxc6 {[%emt 0:00:19]} Kh8 {[%emt 0:01:13]} 26. Qd5 {[%emt 0:01:16]} Nd8 {[%emt 0:01:22]} 27. Bd7 {[%emt 0:00:43]} Qa6 {[%emt 0:00:32]} 28. Bxf5 {[%emt 0:00:37]} Rb5 {[%emt 0:00:32]} 29. Qd7 {[%emt 0:00:25]} Rb7 {[%emt 0:00:26]} 30. Qe8+ {[%emt 0:00:14]} 1-0

[Event "Israeli Team U18-ch 2022"]
[Site "Be'er Ya'akov"]
[Date "2022.08.15"]
[Round "5.17"]
[White "Mishkovsky, Israel"]
[Black "Shapira, Gal"]
[Result "0-1"]
[ECO "D37"]
[WhiteElo "1940"]
[BlackElo "1995"]
[Annotator "NA RC"]
[PlyCount "110"]
[EventDate "2022.08.14"]
[EventCountry "ISR"]
[SourceTitle "playchess.com"]
[Source "ChessBase"]
[SourceQuality "1"]
[TimeControl "3000+10"]

1. d4 {[%emt 0:00:02]} d5 {[%emt 0:00:08]} 2. Nf3 {[%emt 0:00:16]} Nf6 {[%emt 0:00:05]} 3. c4 {[%emt 0:00:05]} e6 {[%emt 0:00:07]} 4. Nc3 {[%emt 0:00:07]} Be7 {[%emt 0:00:12]} 5. Bf4 {[%emt 0:00:20]} O-O {[%emt 0:01:17]} 6. e3 {[%emt 0:00:06]} c6 {[%emt 0:00:29]} 7. Bd3 {[%emt 0:00:45]} Nbd7 {[%emt 0:00:40]} 8. O-O {[%emt 0:00:37]} h6 {[%emt 0:02:38]} 9. h3 {[%emt 0:00:25]} dxc4 {[%emt 0:05:45]} 10. Bxc4 {[%emt 0:00:05]} Nb6 {[%emt 0:00:17]} 11. Bb3 {[%emt 0:02:07]} Nbd5 {[%emt 0:01:00]} 12. Be5 {[%emt 0:00:31]} b6 {[%emt 0:01:27]} 13. Qe2 {[%emt 0:02:49]} a5 {[%emt 0:02:52]} 14. Rfd1 {[%emt 0:01:15]} Ba6 {[%emt 0:00:31]} 15. Qe1 {[%emt 0:00:39]} Nb4 {[%emt 0:02:51]} 16. Rd2 {[%emt 0:01:41]} Nbd5 {[%emt 0:03:32]} 17. e4 {[%emt 0:01:19]} Nxc3 {[%emt 0:00:14]} 18. bxc3 {[%emt 0:00:02]} b5 {[%emt 0:01:24]} 19. a4 {[%emt 0:00:35]} Qb6 {[%emt 0:01:00]} 20. d5 {[%emt 0:01:00]} cxd5 {[%emt 0:00:45]} 21. exd5 {[%emt 0:00:12]} bxa4 {[%emt 0:03:10]} 22. d6 {[%emt 0:00:54]} axb3 {[%emt 0:03:51]} 23. dxe7 {[%emt 0:00:02]} Rfe8 {[%emt 0:00:27]} 24. Bxf6 {[%emt 0:16:37]} gxf6 {[%emt 0:00:06]} 25. Rd4 {[%emt 0:00:06]} Rxe7 {[%emt 0:02:03]} 26. Qd2 {[%emt 0:00:20]} e5 {[%emt 0:03:27]} 27. Rh4 {[%emt 0:01:56]} f5 {[%emt 0:01:11]} 28. Rxh6 {[%emt 0:00:02]} Re6 {[%emt 0:00:15]} 29. Rxe6 {[%emt 0:03:11]} Qxe6 {[%emt 0:00:59]} 30. Rxa5 {[%emt 0:00:02]} f6 {[%emt 0:01:47]} 31. Rc5 {[%emt 0:12:32]} Rc8 {[%emt 0:02:05]} 32. Rxc8+ {[%emt 0:01:10]} Bxc8 {[%emt 0:00:12]} 33. Qb2 {[%emt 0:00:41]} Ba6 {[%emt 0:00:21]} 34. Nd2 {[%emt 0:00:02]} Bc4 {[%emt 0:00:26]} 35. g3 {[%emt 0:01:33]} Qa6 {[%emt 0:01:00]} 36. h4 {[%emt 0:00:32]} Bf7 {[%emt 0:01:06]} 37. Qb1 {[%emt 0:00:03]} Qa2 {[%emt 0:01:01]} 38. Qd1 {[%emt 0:01:27]} Qc2 {[%emt 0:00:47]} 39. Qe1 {[%emt 0:00:18]} b2 {[%emt 0:00:36]} 40. Kh2 {[%emt 0:00:13]} Qxd2 {[%emt 0:00:56]} 41. Qxd2 {[%emt 0:00:01]} b1=Q {[%emt 0:00:09]} 42. Qh6 {[%emt 0:00:16]} Qb6 {[%emt 0:00:28]} 43. Kg1 {[%emt 0:00:06]} Qd6 {[%emt 0:00:50]} 44. Kh2 {[%emt 0:00:08]} e4 {[%emt 0:00:53]} 45. Qe3 {[%emt 0:00:10]} Qd3 {[%emt 0:00:22]} 46. Qc5 {[%emt 0:00:03]} Qf3 {[%emt 0:00:28]} 47. Kg1 {[%emt 0:00:01]} Kg7 {[%emt 0:00:09]} 48. Qd4 {[%emt 0:00:19]} Kg6 {[%emt 0:00:36]} 49. c4 {[%emt 0:00:10]} Qd3 {[%emt 0:00:11]} 50. h5+ {[%emt 0:00:23]} Kg5 {[%emt 0:00:43]} 51. f4+ {[%emt 0:00:11]} Kg4 {[%emt 0:00:28]} 52. Qxf6 {[%emt 0:00:06]} Qd1+ {[%emt 0:00:18]} 53. Kf2 {[%emt 0:00:14]} Qd2+ {[%emt 0:00:03]} 54. Kg1 {[%emt 0:00:03]} Qe1+ {[%emt 0:00:07]} 55. Kg2 {[%emt 0:00:07]} Qxg3+ {[%emt 0:00:35]} 0-1

[Event "Israeli Team U18-ch 2022"]
[Site "Be'er Ya'akov"]
[Date "2022.08.15"]
[Round "5.18"]
[White "Sobel, Ido"]
[Black "Zusman, Tal"]
[Result "1-0"]
[ECO "B23"]
[WhiteElo "1870"]
[BlackElo "1445"]
[Annotator "NA RC"]
[PlyCount "57"]
[EventDate "2022.08.14"]
[EventCountry "ISR"]
[SourceTitle "playchess.com"]
[Source "ChessBase"]
[SourceQuality "1"]
[TimeControl "3000+10"]

1. e4 {[%emt 0:00:02]} c5 {[%emt 0:00:14]} 2. Nc3 {[%emt 0:00:02]} e6 {[%emt 0:00:07]} 3. f4 {[%emt 0:00:02]} Nc6 {[%emt 0:00:11]} 4. Nf3 {[%emt 0:00:03]} Qc7 {[%emt 0:06:13]} 5. d3 {[%emt 0:01:46]} d6 {[%emt 0:01:42]} 6. Be2 {[%emt 0:00:10]} Nf6 {[%emt 0:00:25]} 7. O-O {[%emt 0:00:03]} Bd7 {[%emt 0:02:40]} 8. Qe1 {[%emt 0:00:24]} Nd4 {[%emt 0:01:02]} 9. Bd1 {[%emt 0:00:54]} Be7 {[%emt 0:04:55]} 10. h3 {[%emt 0:00:45]} O-O-O {[%emt 0:01:47]} 11. Be3 {[%emt 0:00:26]} Nxf3+ {[%emt 0:02:43]} 12. Bxf3 {[%emt 0:00:23]} Rhg8 {[%emt 0:00:30]} 13. a4 {[%emt 0:01:23]} h6 {[%emt 0:00:26]} 14. Nb5 {[%emt 0:00:09]} Qb6 {[%emt 0:01:59]} 15. c4 {[%emt 0:00:27]} g5 {[%emt 0:01:08]} 16. fxg5 {[%emt 0:01:47]} hxg5 {[%emt 0:00:15]} 17. b4 {[%emt 0:02:52]} Bxb5 {[%emt 0:02:40]} 18. axb5 {[%emt 0:00:47]} g4 {[%emt 0:00:14]} 19. hxg4 {[%emt 0:00:06]} Nxg4 {[%emt 0:00:07]} 20. bxc5 {[%emt 0:02:42]} dxc5 {[%emt 0:00:02]} 21. Bxg4 {[%emt 0:01:24]} Rxg4 {[%emt 0:00:03]} 22. Rxf7 {[%emt 0:00:01]} Bd6 {[%emt 0:01:33]} 23. Bd2 {[%emt 0:04:53]} Bg3 {[%emt 0:01:57]} 24. Qe2 {[%emt 0:07:16]} Rdg8 {[%emt 0:00:02]} 25. Raf1 {[%emt 0:01:53]} Qd6 {[%emt 0:00:31]} 26. R1f3 {[%emt 0:04:47]} Be5 {[%emt 0:14:15]} 27. Rf8+ {[%emt 0:02:33]} Kc7 {[%emt 0:05:07]} 28. Ba5+ {[%emt 0:00:35]} b6 {[%emt 0:00:53]} 29. R3f7+ {[%emt 0:00:01]} 1-0

[Event "Israeli Team U18-ch 2022"]
[Site "Be'er Ya'akov"]
[Date "2022.08.15"]
[Round "5.19"]
[White "Scheimann, Ori"]
[Black "Sobel, Alon"]
[Result "0-1"]
[ECO "C02"]
[WhiteElo "1552"]
[BlackElo "1843"]
[Annotator "NA RC"]
[PlyCount "54"]
[EventDate "2022.08.14"]
[EventCountry "ISR"]
[SourceTitle "playchess.com"]
[Source "ChessBase"]
[SourceQuality "1"]
[TimeControl "3000+10"]

1. e4 {[%emt 0:00:03]} c5 {[%emt 0:00:05]} 2. c3 {[%emt 0:00:08]} e6 {[%emt 0:00:07]} 3. d4 {[%emt 0:00:07]} d5 {[%emt 0:00:08]} 4. e5 {[%emt 0:00:08]} Nc6 {[%emt 0:00:05]} 5. Nf3 {[%emt 0:00:09]} Qb6 {[%emt 0:00:09]} 6. a3 {[%emt 0:00:23]} Nh6 {[%emt 0:01:12]} 7. b4 {[%emt 0:01:26]} cxd4 {[%emt 0:00:05]} 8. cxd4 {[%emt 0:00:09]} Nf5 {[%emt 0:00:28]} 9. Bb2 {[%emt 0:00:31]} Bd7 {[%emt 0:02:21]} 10. Be2 {[%emt 0:03:12]} Be7 {[%emt 0:01:21]} 11. O-O {[%emt 0:02:13]} O-O {[%emt 0:01:28]} 12. Qd2 {[%emt 0:03:01]} f6 {[%emt 0:01:00]} 13. Bd3 {[%emt 0:07:51]} fxe5 {[%emt 0:00:17]} 14. dxe5 {[%emt 0:00:11]} Rf7 {[%emt 0:01:57]} 15. Bxf5 {[%emt 0:02:24]} Rxf5 {[%emt 0:00:09]} 16. Nd4 {[%emt 0:00:11]} Bg5 {[%emt 0:04:45]} 17. Qd1 {[%emt 0:02:52]} Nxd4 {[%emt 0:02:04]} 18. Bxd4 {[%emt 0:00:11]} Qc7 {[%emt 0:00:14]} 19. Nd2 {[%emt 0:01:36]} Raf8 {[%emt 0:01:56]} 20. g3 {[%emt 0:05:00]} Bb5 {[%emt 0:01:41]} 21. Re1 {[%emt 0:00:24]} Qf7 {[%emt 0:00:51]} 22. Nf1 {[%emt 0:08:43]} Rxf2 {[%emt 0:02:27]} 23. Bxf2 {[%emt 0:00:08]} Qxf2+ {[%emt 0:00:07]} 24. Kh1 {[%emt 0:00:04]} d4 {[%emt 0:00:19]} 25. Qb1 {[%emt 0:03:51]} Bc6+ {[%emt 0:00:26]} 26. Re4 {[%emt 0:00:05]} Qf3+ {[%emt 0:01:05]} 27. Kg1 {[%emt 0:00:04]} Bxe4 {[%emt 0:00:06]} 0-1